fUSD/lending_fUSD_20260407
["ID","MTS","AMOUNT","RATE_DAILY","PERIOD"]
[419944155,1775529066142,-150.0,0.00014851,2]
[419944156,1775529066152,-150.0,0.00014851,2]
[419944157,1775529066162,-150.0,0.00014866,2]
[419944158,1775529066173,-150.0,0.00014871,2]
[419944159,1775529066183,-150.0,0.00014876,2]
[419944160,1775529066193,-985.75,0.00014879,2]
[419944161,1775529066204,-150.0,0.0001488,2]
[419944162,1775529066215,-150.0,0.00014882,2]
[419944163,1775529066224,-1252.56789885,0.00014886,2]
[419944164,1775529066234,-212.0,0.00014888,2]
[419944165,1775529066244,-200.21,0.00014892,3]
[419944166,1775529066255,-150.0,0.00014905,2]
[419944167,1775529066266,-150.0,0.00014905,2]
[419944168,1775529066276,-283.10092568,0.00014906,2]
[419944169,1775529066286,-150.0,0.00014913,2]
[419944170,1775529066297,-150.0,0.00014917,2]
[419944171,1775529066308,-150.0,0.00014919,2]
[419944172,1775529066319,-1098.50735331,0.0001492,2]
[419944173,1775529066328,-1500.0,0.0001492,2]
[419944174,1775529066338,-1501.32745538,0.0001492,2]
[419944175,1775529066348,-1500.0,0.0001492,2]
[419944176,1775529066356,-212.0,0.00014922,2]
[419944177,1775529066367,-150.0,0.00014931,2]
[419944178,1775529066376,-150.0,0.00014935,2]
[419944179,1775529066386,-150.0,0.00014935,2]
[419944180,1775529066396,-1500.0,0.00014935,2]
[419944181,1775529066406,-1501.06711075,0.00014935,2]
[419944182,1775529066415,-1197.87652131,0.00014935,2]
[419944183,1775529066425,-802.98739956,0.00014937,2]
[419944184,1775529066435,-1000.0,0.00014943,2]
[419944185,1775529066444,-212.0,0.00014944,2]
[419944186,1775529066454,-150.0,0.00014944,2]
[419944187,1775529066464,-150.0,0.0001496,2]
[419944188,1775529066474,-150.0,0.0001496,2]
[419944189,1775529066483,-150.0,0.00014963,2]
[419944190,1775529066493,-150.0,0.00014971,2]
[419944191,1775529066503,-150.0,0.00014976,2]
[419944192,1775529066512,-599.60298507,0.00014978,2]
[419944193,1775529066522,-721.12765535,0.00014978,2]
[419944194,1775529066531,-200.0,0.00014979,2]
[419944195,1775529066541,-1651.81367706,0.00014979,2]
[419944196,1775529066550,-209.40437684,0.00014979,2]
[419944197,1775529066560,-449.22700131,0.00014979,2]
[419944198,1775529066570,-150.0,0.00014982,2]
[419944199,1775529066580,-1911.0,0.00014984,2]
[419944200,1775529066590,-150.0,0.00014994,2]
[419944201,1775529066599,-1125.0,0.00015,2]
[419944202,1775529066609,-617.0,0.00015,2]
[419944203,1775529066619,-300.0,0.00015,2]
[419944204,1775529066629,-150.0,0.00015007,2]
[419944205,1775529066638,-150.0,0.0001501,2]
[419944206,1775529066648,-512.0,0.00015012,2]
[419944207,1775529066657,-150.0,0.00015015,2]
[419944208,1775529066668,-150.0,0.00015024,2]
[419944209,1775529066678,-150.0,0.00015033,2]
[419944210,1775529066689,-150.0,0.00015038,2]
[419944211,1775529066699,-200.0,0.00015041,2]
[419944212,1775529066709,-200.0,0.00015041,2]
[419944213,1775529066721,-200.0,0.00015041,2]
[419944214,1775529066730,-200.0,0.00015041,2]
[419944215,1775529066740,-200.0,0.00015041,2]
[419944216,1775529066749,-200.0,0.00015041,2]
[419944217,1775529066758,-800.0,0.00015041,2]
[419944218,1775529066768,-496.0,0.00015041,2]
[419944219,1775529066777,-200.0,0.00015041,2]
[419944220,1775529066786,-200.0,0.00015041,2]
[419944221,1775529066796,-200.0,0.00015041,2]
[419944222,1775529066806,-200.0,0.00015041,2]
[419944223,1775529066816,-200.0,0.00015041,2]
[419944224,1775529066825,-200.0,0.00015041,2]
[419944225,1775529066835,-200.0,0.00015041,2]
[419944226,1775529066844,-200.0,0.00015041,2]
[419944227,1775529066854,-200.0,0.00015041,2]
[419944228,1775529066863,-200.0,0.00015041,2]
[419944229,1775529066873,-200.0,0.00015041,2]
[419944230,1775529066882,-200.0,0.00015041,2]
[419944231,1775529066892,-800.0,0.00015041,2]
[419944232,1775529066901,-800.0,0.00015041,2]
[419944233,1775529066911,-800.0,0.00015041,2]
[419944234,1775529066920,-800.0,0.00015041,2]
[419944235,1775529066930,-800.0,0.00015041,2]
[419944236,1775529066939,-800.0,0.00015041,2]
[419944237,1775529066948,-801.0,0.00015041,2]
[419944238,1775529066958,-800.0,0.00015041,2]
[419944239,1775529066968,-800.0,0.00015041,2]
[419944240,1775529066977,-200.0,0.00015041,2]
[419944241,1775529066987,-800.0,0.00015041,2]
[419944242,1775529066996,-800.0,0.00015041,2]
[419944243,1775529067005,-800.0,0.00015041,2]
[419944244,1775529067015,-800.0,0.00015041,2]
[419944245,1775529067024,-800.0,0.00015041,2]
[419944246,1775529067034,-800.0,0.00015041,2]
[419944247,1775529067043,-800.0,0.00015041,2]
[419944248,1775529067053,-800.0,0.00015041,2]
[419944249,1775529067063,-800.0,0.00015041,2]
[419944250,1775529067073,-800.0,0.00015041,2]
[419944251,1775529067083,-800.0,0.00015041,2]
[419944252,1775529067092,-800.0,0.00015041,2]
[419944253,1775529067102,-200.0,0.00015041,2]
[419944254,1775529067112,-200.0,0.00015041,2]
[419944255,1775529067121,-800.0,0.00015041,2]
[419944256,1775529067132,-200.0,0.00015041,2]
[419944257,1775529067141,-200.0,0.00015041,2]
[419944258,1775529067151,-200.0,0.00015041,2]
[419944259,1775529067160,-200.0,0.00015041,2]
[419944260,1775529067170,-200.0,0.00015041,2]
[419944261,1775529067179,-200.0,0.00015041,2]
[419944262,1775529067188,-200.0,0.00015041,2]
[419944263,1775529067198,-283.0,0.00015041,2]
[419944264,1775529067207,-800.0,0.00015041,2]
[419944265,1775529067218,-800.0,0.00015041,2]
[419944266,1775529067227,-800.0,0.00015041,2]
[419944267,1775529067237,-800.0,0.00015041,2]
[419944268,1775529067246,-800.0,0.00015041,2]
[419944269,1775529067256,-800.0,0.00015041,2]
[419944270,1775529067266,-800.0,0.00015041,2]
[419944271,1775529067276,-800.0,0.00015041,2]
[419944272,1775529067285,-800.0,0.00015041,2]
[419944273,1775529067295,-800.0,0.00015041,2]
[419944274,1775529067305,-200.0,0.00015041,2]
[419944275,1775529067315,-800.0,0.00015041,2]
[419944276,1775529067324,-800.0,0.00015041,2]
[419944277,1775529067334,-800.0,0.00015041,2]
[419944278,1775529067344,-800.0,0.00015041,2]
[419944279,1775529067353,-200.0,0.00015041,2]
[419944280,1775529067363,-800.0,0.00015041,2]
[419944281,1775529067373,-800.0,0.00015041,2]
[419944282,1775529067383,-800.0,0.00015041,2]
[419944283,1775529067393,-817.0,0.00015041,2]
[419944284,1775529067402,-200.0,0.00015041,2]
[419944285,1775529067412,-200.0,0.00015041,2]
[419944286,1775529067421,-200.0,0.00015041,2]
[419944287,1775529067431,-200.0,0.00015041,2]
[419944288,1775529067441,-200.0,0.00015041,2]
[419944289,1775529067450,-200.0,0.00015041,2]
[419944290,1775529067460,-800.0,0.00015041,2]
[419944291,1775529067469,-800.0,0.00015041,2]
[419944292,1775529067478,-800.0,0.00015041,2]
[419944293,1775529067488,-800.0,0.00015041,2]
[419944294,1775529067498,-800.0,0.00015041,2]
[419944295,1775529067508,-800.0,0.00015041,2]
[419944296,1775529067518,-150.0,0.00015052,2]
[419944297,1775529067527,-150.0,0.00015052,2]
[419944298,1775529067537,-4914.0,0.00015055,2]
[419944299,1775529067547,-150.0,0.00015056,2]
[419944300,1775529067557,-420.55,0.00015068,2]
[419944301,1775529067566,-800.0,0.00015068,2]
[419944302,1775529067575,-150.0,0.00015069,2]
[419944303,1775529067585,-150.0,0.00015069,2]
[419944304,1775529067594,-150.0,0.00015069,2]
[419944305,1775529067604,-500.27198937,0.00015073,2]
[419944306,1775529067613,-501.78348343,0.00015073,2]
[419944307,1775529067622,-500.1890945,0.00015073,2]
[419944308,1775529067632,-500.0,0.00015073,2]
[419944309,1775529067641,-500.0,0.00015073,2]
[419944310,1775529067651,-501.47777221,0.00015073,2]
[419944311,1775529067660,-512.0,0.00015076,2]
[419944312,1775529067670,-150.0,0.00015077,2]
[419944313,1775529067680,-150.0,0.00015084,2]
[419944314,1775529067690,-512.0,0.00015085,2]
[419944315,1775529067699,-212.0,0.00015085,2]
[419944316,1775529067709,-150.0,0.00015097,2]
[419944317,1775529067718,-687.69,0.00015099,2]
[419944318,1775529067728,-687.69,0.00015099,2]
[419944319,1775529067739,-687.69,0.00015099,2]
[419944320,1775529067748,-500.0,0.00015099,2]
[419944321,1775529067758,-500.0,0.00015099,2]
[419944322,1775529067768,-150561.61205278,0.000151,2]
[419944323,1775529069167,-359.743394,0.00013699,2]
[419944324,1775529069176,-1140.256606,0.000151,2]
[419944325,1775529070034,-139.6,0.000151,2]
[419944326,1775529070047,-2358.73356464,0.000151,2]
[419944327,1775529070211,-661.24,0.00011693,2]
[419944328,1775529070234,-7169.89611166,0.00011693,2]
[419944329,1775529070250,-648.92043422,0.00011693,2]
[419944330,1775529070685,-650.01129907,0.00011693,2]
[419944331,1775529070700,-6357.35056002,0.00011693,2]
[419944362,1775530232681,-500.0,9e-05,2]
[419944364,1775530232693,-250.0,9.169e-05,2]
[419944367,1775530232705,-250.0,9.619e-05,2]
[419944369,1775530232717,-250.0,9.883e-05,2]
[419944371,1775530232730,-250.0,9.9e-05,2]
[419944374,1775530232744,-500.0,0.00010286,2]
[419944376,1775530232756,-1699.84,0.00010295,2]
[419944377,1775530232768,-379.95,0.00010427,2]
[419944378,1775530232780,-230.77532909,0.000106,2]
[419944379,1775530232793,-1140.43,0.00010708,2]
[419944380,1775530232806,-1600.0,0.00010766,2]
[419944381,1775530232818,-299.99,0.00010766,2]
[419944382,1775530232830,-9999.99,0.00010766,2]
[419944383,1775530232843,-150.99,0.00010766,2]
[419944384,1775530232856,-125.13743989,0.00010959,2]
[419944385,1775530232875,-24.86256011,0.00010959,2]
[419944386,1775530232887,-3377.98599799,0.000112,2]
[419944388,1775530238177,-1847.43919526,0.000112,2]
[419944389,1775530238388,-254.51320897,0.000112,2]
[419944390,1775530238401,-150.0,0.00011207,2]
[419944391,1775530238414,-265.35679103,0.00011208,2]
[419944392,1775530238429,-2309.3,0.00011208,2]
[419944393,1775530238444,-793.66649967,0.00011208,2]
[419944394,1775530238492,-13172.11277462,0.00011208,2]
[419944448,1775530242111,-2200.0,0.00011208,2]
[419944449,1775530242127,-847.03043846,0.00011208,2]
[419944450,1775530242139,-591.72266428,0.00011208,2]
[419944457,1775530243460,-453.0,0.00011208,2]
[419944458,1775530243514,-22273.11082049,0.00011208,2]
[419944459,1775530243672,-6775.52071145,0.00011208,2]
[419944460,1775530243682,-5274.826,0.00011208,2]
[419944461,1775530243692,-1840.63735929,0.00011209,2]
[419944462,1775530243702,-9172.78511695,0.00011209,2]
[419944463,1775530246216,-838.53902766,0.00011209,2]
[419944464,1775530246377,-5547.40013359,0.00011209,2]
[419944465,1775530246429,-15042.63333776,0.00011209,2]
[419944474,1775530326834,162.96,5.346e-05,2]
[419944478,1775530565680,200.24528864,0.0001558,120]
[419944497,1775531432398,-202.6942067,0.00010153,2]
[419944498,1775531432407,-297.0,0.00010153,2]
[419944499,1775531432418,-125.9252167,0.00010172,2]
[419944500,1775531432431,-35.1047833,0.00010172,2]
[419944501,1775531432441,-250.0,0.00010209,2]
[419944502,1775531432451,-857.53819448,0.00010245,2]
[419944503,1775531432468,-2816.40180552,0.00010245,2]
[419944504,1775531432478,-250.0,0.00010253,2]
[419944505,1775531432488,-35.72413017,0.00010281,2]
[419944506,1775531432503,-164.27586983,0.00010281,2]
[419944507,1775531432513,-759.77666883,0.00010288,2]
[419944508,1775531432532,-1240.22333117,0.00010288,2]
[419944509,1775531432543,-1500.0,0.00010298,2]
[419944510,1775531432555,-1341.0,0.000104,5]
[419944511,1775531432566,-19480.00678727,0.000107,2]
[419944512,1775531432580,-16809.14660448,0.000107,2]
[419944513,1775531432595,-622.24371639,0.000107,2]
[419944514,1775531432609,-1182.31771408,0.000107,2]
[419944515,1775531432622,-817.79588592,0.000107,2]
[419944516,1775531432644,-1074.01209574,0.000107,2]
[419944517,1775531432658,-10300.29639889,0.000107,2]
[419944518,1775531432693,-3732.06094082,0.000107,2]
[419944519,1775531432706,-278.617552,0.000107,2]
[419944558,1775531438512,-1052.29999998,0.000107,2]
[419944559,1775531438567,-643.75871664,0.000107,2]
[419944560,1775531440920,-25519.0676509,0.000107,2]
[419944561,1775531440930,-641.735107,0.00010944,2]
[419944562,1775531440945,-2500.0,0.00010999,2]
[419944563,1775531440955,-2250.30087974,0.00010999,2]
[419944564,1775531440965,-150.0,0.00011007,2]
[419944565,1775531440975,-150.99,0.00011073,2]
[419944566,1775531440984,-9999.99,0.00011073,2]
[419944567,1775531440994,-150.99,0.00011073,2]
[419944568,1775531441004,-70644.39,0.00011073,2]
[419944569,1775531441014,-999.99,0.00011073,2]
[419944570,1775531441025,-2115.26671064,0.00011097,2]
[419944571,1775531441036,-365.19147673,0.00011098,2]
[419944572,1775531441046,-34648.57766187,0.00011099,2]
[419944573,1775531441057,-8550.12268373,0.00011099,2]
[419944574,1775531441067,-500.0,0.00011101,2]
[419944575,1775531441077,-500.0,0.00011101,2]
[419944576,1775531441086,-500.0,0.00011101,2]
[419944577,1775531441096,-500.0,0.00011101,2]
[419944578,1775531441106,-500.0,0.00011101,2]
[419944579,1775531441117,-500.0,0.00011101,2]
[419944580,1775531441129,-500.0,0.00011101,2]
[419944581,1775531441138,-500.0,0.00011101,2]
[419944582,1775531441148,-500.0,0.00011101,2]
[419944583,1775531441158,-500.0,0.00011101,2]
[419944584,1775531441168,-500.0,0.00011101,2]
[419944585,1775531441177,-500.0,0.00011101,2]
[419944586,1775531441190,-500.0,0.00011101,2]
[419944587,1775531441201,-500.0,0.00011101,2]
[419944588,1775531441212,-200.0,0.00011101,2]
[419944589,1775531441222,-500.0,0.00011101,2]
[419944590,1775531441232,-151.0,0.00011101,2]
[419944591,1775531441245,-151.0,0.00011101,2]
[419944592,1775531441255,-151.0,0.00011101,2]
[419944593,1775531441265,-151.0,0.00011101,2]
[419944594,1775531441276,-151.0,0.00011101,2]
[419944595,1775531441288,-151.0,0.00011101,2]
[419944596,1775531441298,-151.0,0.00011101,2]
[419944597,1775531441310,-151.0,0.00011101,2]
[419944598,1775531441322,-151.0,0.00011101,2]
[419944599,1775531441333,-151.0,0.00011101,2]
[419944600,1775531441344,-500.0,0.00011101,2]
[419944601,1775531441355,-151.0,0.00011101,2]
[419944602,1775531441366,-500.0,0.00011101,2]
[419944603,1775531441378,-151.0,0.00011101,2]
[419944604,1775531441390,-500.0,0.00011101,2]
[419944605,1775531441400,-151.0,0.00011101,2]
[419944606,1775531441412,-500.0,0.00011101,2]
[419944607,1775531441422,-151.0,0.00011101,2]
[419944608,1775531441432,-500.0,0.00011101,2]
[419944609,1775531441446,-151.0,0.00011101,2]
[419944610,1775531441456,-151.81875552,0.00011101,2]
[419944611,1775531441466,-500.0,0.00011101,2]
[419944612,1775531441477,-151.0,0.00011101,2]
[419944613,1775531441487,-500.0,0.00011101,2]
[419944614,1775531441498,-151.0,0.00011101,2]
[419944615,1775531441508,-500.0,0.00011101,2]
[419944616,1775531441518,-151.0,0.00011101,2]
[419944617,1775531441529,-500.0,0.00011101,2]
[419944618,1775531441539,-500.0,0.00011101,2]
[419944619,1775531441548,-500.0,0.00011101,2]
[419944620,1775531441559,-500.0,0.00011101,2]
[419944621,1775531441569,-151.0,0.00011101,2]
[419944622,1775531441579,-500.0,0.00011101,2]
[419944623,1775531441589,-151.0,0.00011101,2]
[419944624,1775531441599,-500.0,0.00011101,2]
[419944625,1775531441610,-151.0,0.00011101,2]
[419944626,1775531441620,-519.27929199,0.00011101,2]
[419944627,1775531441630,-151.0,0.00011101,2]
[419944628,1775531441641,-151.0,0.00011101,2]
[419944629,1775531441652,-151.0,0.00011101,2]
[419944630,1775531441663,-151.0,0.00011101,2]
[419944631,1775531441674,-151.0,0.00011101,2]
[419944632,1775531441684,-151.0,0.00011101,2]
[419944633,1775531441695,-151.0,0.00011101,2]
[419944634,1775531441707,-151.0,0.00011101,2]
[419944635,1775531441717,-151.0,0.00011101,2]
[419944636,1775531441728,-151.0,0.00011101,2]
[419944637,1775531441738,-1199.20597015,0.00011101,2]
[419944638,1775531441748,-151.0,0.00011101,2]
[419944639,1775531441759,-151.0,0.00011101,2]
[419944640,1775531441769,-151.0,0.00011101,2]
[419944641,1775531441779,-151.0,0.00011101,2]
[419944642,1775531441789,-161.68237484,0.00011101,2]
[419944643,1775531441800,-151.818,0.00011106,2]
[419944644,1775531441816,-1569.752,0.00011106,2]
[419944645,1775531441826,-175.073,0.00011108,2]
[419944646,1775531441836,-505471.85803886,0.00011108,2]
[419944647,1775531441995,-7487.84382139,0.00011108,2]
[419944650,1775531443493,-2397.06678008,0.00011108,2]
[419944651,1775531443808,-54043.95609599,0.00011108,2]
[419944652,1775531443820,-271.96277641,0.00011108,2]
[419944653,1775531443862,-144329.66540014,0.00011108,2]
[419944655,1775531446425,-11200.14723598,0.00011108,2]
[419944815,1775531448551,-63404.84076377,0.00011108,2]
[419945745,1775532416268,-292.0,9.848e-05,2]
[419945746,1775532416290,-641.735107,9.848e-05,2]
[419945747,1775532416311,-66.264893,9.974e-05,2]
[419945748,1775532418922,-183.735107,9.974e-05,2]
[419945749,1775532418944,-243.0,9.999e-05,2]
[419945750,1775532418966,-300.0,9.999e-05,2]
[419945751,1775532418988,-273.264893,9.999e-05,2]
[419945752,1775532419017,-26.735107,9.999e-05,2]
[419945753,1775532419038,-300.0,9.999e-05,2]
[419945754,1775532419061,-673.264893,9.999e-05,2]
[419945755,1775532419095,-526.735107,9.999e-05,2]
[419945756,1775532419116,-333.75724097,9.999e-05,2]
[419945757,1775532419137,-139.50765203,0.0001,2]
[419945758,1775532419170,-1000.0,0.0001,2]
[419945759,1775532419201,-1000.0,0.0001,2]
[419945760,1775532419231,-1000.0,0.0001,2]
[419945761,1775532419296,-1000.0,0.0001,2]
[419945762,1775532420556,-1000.0,0.0001,2]
[419945763,1775532420885,-1000.0,0.0001,2]
[419945764,1775532421412,-300.0,9.998e-05,2]
[419945765,1775532421438,-700.0,0.0001,2]
[419945766,1775532421705,-300.0,9.998e-05,2]
[419945767,1775532421727,-700.0,0.0001,2]
[419945768,1775532422043,-1000.0,0.0001,2]
[419945769,1775532422473,-150.0,9.999e-05,2]
[419945770,1775532422495,-850.0,0.0001,2]
[419945771,1775532422706,-1000.0,0.0001,2]
[419945772,1775532423036,-1000.0,0.0001,2]
[419945773,1775532423924,-1000.0,0.0001,2]
[419945774,1775532424291,-1000.0,0.0001,2]
[419945775,1775532424816,-1000.0,0.0001,2]
[419945776,1775532425229,-1000.0,0.0001,2]
[419945777,1775532425317,-1000.0,0.0001,2]
[419945778,1775532425724,-1000.0,0.0001,2]
[419945779,1775532426477,-1000.0,0.0001,2]
[419945780,1775532426567,-1000.0,0.0001,2]
[419945781,1775532426710,-1000.0,0.0001,2]
[419945782,1775532427099,-1000.0,0.0001,2]
[419945783,1775532427580,-1000.0,0.0001,2]
[419945784,1775532427908,-1000.0,0.0001,2]
[419945785,1775532428359,-1000.0,0.0001,2]
[419945786,1775532428887,-1000.0,0.0001,2]
[419945787,1775532430463,-1000.0,0.0001,2]
[419945788,1775532430520,-1000.0,0.0001,2]
[419945789,1775532430604,-1000.0,0.0001,2]
[419945790,1775532431172,-1000.0,0.0001,2]
[419945791,1775532431243,-1000.0,0.0001,2]
[419945792,1775532431282,-1000.0,0.0001,2]
[419945793,1775532431704,-1000.0,0.0001,2]
[419945794,1775532432062,-1000.0,0.0001,2]
[419945795,1775532432358,-1000.0,0.0001,2]
[419945796,1775532432726,-1000.0,0.0001,2]
[419945797,1775532433040,-1000.0,0.0001,2]
[419945798,1775532433459,-1000.0,0.0001,2]
[419945799,1775532433908,-1000.0,0.0001,2]
[419945800,1775532434258,-1000.0,0.0001,2]
[419945801,1775532434591,-1000.0,0.0001,2]
[419945802,1775532435114,-132.49234797,0.0001,2]
[419945803,1775532435135,-682.74,0.00010029,2]
[419945804,1775532435166,-184.76765203,0.00010303,2]
[419945805,1775532435271,-148.98958892,0.00010303,2]
[419945806,1775532435295,-851.01041108,0.00010553,2]
[419945807,1775532436646,-717.74867214,0.00010553,2]
[419945808,1775532477013,-157.08,0.00010668,2]
[419945809,1775532477034,-305.0,0.00010668,2]
[419945810,1775532488732,-333.75724095,0.00010707,2]
[419945811,1775532488753,-666.24275905,0.00010725,2]
[419945812,1775532490393,-408.30724095,0.00010725,2]
[419945813,1775532505780,-329.38,0.00010045,2]
[419945814,1775532631471,-1125.14410807,0.00010707,2]
[419945815,1775532631583,-701.15959193,0.00010707,2]
[419945816,1775532631592,-45.48585823,0.00010707,2]
[419945817,1775532631605,-2454.51414177,0.00010707,2]
[419945818,1775532631614,-400.40649323,0.00010801,2]
[419945819,1775532631638,-1174.95430677,0.00010801,2]
[419945820,1775532631648,-1200.0,0.00010805,2]
[419945821,1775532631657,-300.0,0.00010805,2]
[419945822,1775532631666,-150.0,0.00010805,2]
[419945823,1775532631675,-1151.97760634,0.00010806,2]
[419945824,1775532631684,-1151.97760634,0.00010806,2]
[419945825,1775532631693,-1151.97760634,0.00010806,2]
[419945826,1775532631703,-1151.97760634,0.00010806,2]
[419945827,1775532631713,-1151.97760634,0.00010806,2]
[419945828,1775532631722,-1151.97760634,0.00010806,2]
[419945829,1775532631731,-1151.97760634,0.00010806,2]
[419945830,1775532631740,-1151.97760634,0.00010806,2]
[419945831,1775532631750,-1151.97760634,0.00010806,2]
[419945832,1775532631759,-1151.97760634,0.00010806,2]
[419945833,1775532631768,-1151.97760634,0.00010806,2]
[419945834,1775532631777,-1151.97760634,0.00010806,2]
[419945835,1775532631787,-1151.97760634,0.00010806,2]
[419945836,1775532631796,-1151.97760634,0.00010806,2]
[419945837,1775532631806,-784.71449327,0.00010806,2]
[419945838,1775532631817,-367.26311307,0.00010806,2]
[419945839,1775532631826,-37.94751369,0.00010806,2]
[419945840,1775532631849,-700.36150344,0.00010806,2]
[419945854,1775532637844,-383.58159312,0.00010806,2]
[419945868,1775532640670,-30.08699609,0.00010806,2]
[419945869,1775532640681,-1151.97760634,0.00010806,2]
[419945870,1775532640691,-1151.97760634,0.00010806,2]
[419945871,1775532640701,-1151.97760634,0.00010806,2]
[419945873,1775532640711,-1151.97760634,0.00010806,2]
[419945874,1775532640720,-1151.97760634,0.00010806,2]
[419945875,1775532640731,-1151.97760634,0.00010806,2]
[419945876,1775532640742,-1151.97760634,0.00010806,2]
[419945877,1775532640751,-1151.97760634,0.00010806,2]
[419945878,1775532640761,-1151.97760634,0.00010806,2]
[419945880,1775532640770,-1151.97760634,0.00010806,2]
[419945882,1775532640780,-1151.97760634,0.00010806,2]
[419945884,1775532640789,-1151.97760634,0.00010806,2]
[419945886,1775532640799,-1151.97760634,0.00010806,2]
[419945887,1775532640809,-1151.97760634,0.00010806,2]
[419945888,1775532640818,-1151.97760634,0.00010806,2]
[419945889,1775532640828,-1151.97760634,0.00010806,2]
[419945890,1775532640838,-1151.97760634,0.00010806,2]
[419945891,1775532640848,-386.04870513,0.00010806,2]
[419945892,1775532640861,-765.92890121,0.00010806,2]
[419945893,1775532640871,-1151.97760634,0.00010806,2]
[419945894,1775532640881,-1151.97760634,0.00010806,2]
[419945895,1775532640890,-1151.97760634,0.00010806,2]
[419945896,1775532640900,-1151.97760634,0.00010806,2]
[419945897,1775532640909,-1151.97760634,0.00010806,2]
[419945898,1775532640918,-1151.97760634,0.00010806,2]
[419945899,1775532640927,-1151.97760634,0.00010806,2]
[419945900,1775532640936,-1151.97760634,0.00010806,2]
[419945901,1775532640945,-1151.97760634,0.00010806,2]
[419945902,1775532640956,-1151.97760634,0.00010806,2]
[419945903,1775532640965,-1151.97760634,0.00010806,2]
[419945904,1775532640974,-1151.97760634,0.00010806,2]
[419945905,1775532640983,-1151.97760634,0.00010806,2]
[419945906,1775532640992,-1151.97760634,0.00010806,2]
[419945907,1775532641001,-1135.52078339,0.00010806,2]
[419945908,1775532641010,-1135.52078339,0.00010806,2]
[419945909,1775532641019,-1135.52078339,0.00010806,2]
[419945910,1775532641029,-1135.52078339,0.00010806,2]
[419945911,1775532641040,-1135.52078339,0.00010806,2]
[419945912,1775532641049,-1135.52078339,0.00010806,2]
[419945913,1775532641058,-1135.52078339,0.00010806,2]
[419945914,1775532641067,-1135.52078339,0.00010806,2]
[419945915,1775532641076,-1135.52078339,0.00010806,2]
[419945916,1775532641085,-1135.52078339,0.00010806,2]
[419945917,1775532641094,-1135.52078339,0.00010806,2]
[419945918,1775532641103,-1135.52078339,0.00010806,2]
[419945919,1775532641112,-1135.52078339,0.00010806,2]
[419945920,1775532641121,-1135.52078339,0.00010806,2]
[419945921,1775532641131,-1135.52078339,0.00010806,2]
[419945922,1775532641140,-1135.52078339,0.00010806,2]
[419945923,1775532641150,-1135.52078339,0.00010806,2]
[419945924,1775532641159,-1135.52078339,0.00010806,2]
[419945925,1775532641168,-1135.52078339,0.00010806,2]
[419945926,1775532641177,-1135.52078339,0.00010806,2]
[419945927,1775532641186,-1135.52078339,0.00010806,2]
[419945928,1775532641196,-1135.52078339,0.00010806,2]
[419945929,1775532641205,-1135.52078339,0.00010806,2]
[419945930,1775532641214,-1135.52078339,0.00010806,2]
[419945931,1775532641223,-1135.52078339,0.00010806,2]
[419945932,1775532641231,-1135.52078339,0.00010806,2]
[419945933,1775532641241,-1135.52078339,0.00010806,2]
[419945934,1775532641250,-1135.52078339,0.00010806,2]
[419945935,1775532641259,-1135.52078339,0.00010806,2]
[419945936,1775532641268,-1135.52078339,0.00010806,2]
[419945937,1775532641278,-1135.52078339,0.00010806,2]
[419945938,1775532641287,-1135.52078339,0.00010806,2]
[419945939,1775532641296,-178.65068786,0.00010806,2]
[419945940,1775532641316,-956.87009553,0.00010806,2]
[419945941,1775532641325,-1135.52078339,0.00010806,2]